fUSD/lending_fUSD_20260301
["ID","MTS","AMOUNT","RATE_DAILY","PERIOD"]
[406978202,1772398253065,-500.0,0.00017918,2]
[406978203,1772398253075,-150.0,0.00017931,7]
[406978204,1772398253085,-159.0,0.00017931,7]
[406978205,1772398253095,-1000.0,0.00017942,2]
[406978206,1772398253106,-1000.0,0.00017952,2]
[406978207,1772398253116,-1000.0,0.00017953,2]
[406978208,1772398253125,-168.0,0.00017953,2]
[406978209,1772398253134,-1000.0,0.00017956,2]
[406978210,1772398253144,-1000.0,0.00017961,2]
[406978211,1772398253153,-500.0,0.00017964,2]
[406978212,1772398253163,-200.0,0.00017966,2]
[406978213,1772398253172,-500.0,0.00017972,2]
[406978214,1772398253182,-28492.0,0.00017973,2]
[406978215,1772398253191,-502.5194021,0.00017973,2]
[406978216,1772398253200,-500.0,0.00017973,2]
[406978217,1772398253210,-502.2190815,0.00017973,2]
[406978218,1772398253219,-642.26991828,0.00017973,2]
[406978219,1772398253228,-308.59204947,0.00017973,2]
[406978220,1772398253237,-505.28465419,0.00017973,2]
[406978221,1772398253246,-500.0,0.00017973,2]
[406978222,1772398253257,-500.0,0.00017973,2]
[406978223,1772398253268,-504.75046136,0.00017973,2]
[406978224,1772398253277,-500.0,0.00017973,2]
[406978225,1772398253287,-162.76893119,0.00017973,2]
[406978226,1772398253296,-516.45912901,0.00017973,2]
[406978227,1772398253305,-500.0,0.00017973,2]
[406978228,1772398253316,-594.11559055,0.00017973,2]
[406978229,1772398253326,-500.82123681,0.00017973,2]
[406978230,1772398253335,-500.0,0.00017973,2]
[406978231,1772398253345,-500.0,0.00017973,2]
[406978232,1772398253355,-500.0,0.00017973,2]
[406978233,1772398253364,-520.55026084,0.00017973,2]
[406978234,1772398253373,-500.0,0.00017973,2]
[406978235,1772398253383,-500.0,0.00017973,2]
[406978236,1772398253393,-500.0,0.00017973,2]
[406978237,1772398253402,-151.0,0.00017973,2]
[406978238,1772398253411,-1000.0,0.00017973,2]
[406978239,1772398253421,-1000.0,0.00017985,2]
[406978240,1772398253431,-1000.0,0.00017992,2]
[406978241,1772398253441,-151.0,0.00017997,2]
[406978242,1772398253451,-190.47360615,0.00017997,2]
[406978243,1772398253460,-500.0,0.00017999,2]
[406978244,1772398253470,-300.0,0.00017999,2]
[406978245,1772398253480,-666.0,0.00017999,2]
[406978246,1772398253490,-300.0,0.00017999,2]
[406978247,1772398253499,-300.0,0.00017999,2]
[406978248,1772398253508,-150.0,0.00017999,2]
[406978249,1772398253517,-150.0,0.00017999,2]
[406978250,1772398253527,-150.0,0.00017999,2]
[406978251,1772398253536,-150.0,0.00017999,2]
[406978252,1772398253546,-150.0,0.00017999,2]
[406978253,1772398253556,-150.0,0.00017999,2]
[406978254,1772398253566,-300.0,0.00017999,2]
[406978255,1772398253577,-259.81856922,0.00017999,2]
[406978256,1772398253587,-4837971.81729406,0.00018,2]
[406978257,1772398253906,-553.10672904,0.00018,2]
[406978258,1772398253918,-785.13339283,0.00018,2]
[406978259,1772398254025,-500.0,0.00013698,2]
[406978260,1772398254035,-500.0,0.00013698,2]
[406978261,1772398254044,-500.0,0.00013698,2]
[406978262,1772398254053,-564.87520289,0.00013698,2]
[406978263,1772398254062,-1323.0,0.00017873,2]
[406978264,1772398254072,-1716.3046545,0.00018,2]
[406978265,1772398254146,-174.26855091,0.00013698,2]
[406978266,1772398254156,-151.0,0.00013698,2]
[406978267,1772398254165,-173.10228205,0.00014873,2]
[406978268,1772398254181,-2315.30571795,0.00014873,2]
[406978269,1772398254191,-2457.0,0.00017873,2]
[406978270,1772398254200,-82903.20347285,0.00018,2]
[406978271,1772398254211,-27747.71736775,0.00018,2]
[406978272,1772398254222,-18277.36244985,0.00018,2]
[406978273,1772398254347,-265.5402591,0.00018,2]
[406978274,1772398406940,150.0,0.0001611,117]
[406978276,1772398638529,159.35,9.482e-05,2]
[406978279,1772399125184,-232.0,9.949e-05,2]
[406978280,1772399125209,-150.0,9.949e-05,2]
[406978281,1772399125235,-1200.0,9.949e-05,2]
[406978282,1772399125261,-250.0,9.949e-05,2]
[406978283,1772399125287,-1871.13933847,9.95e-05,2]
[406978284,1772399125312,-95296.86066153,9.95e-05,2]
[406978286,1772399407099,296.5,9.9e-05,2]
[406978300,1772399431604,-817.79588592,9.95e-05,2]
[406978302,1772399431616,-26.67888739,9.95e-05,2]
[406978304,1772399431627,-250.0,9.97e-05,2]
[406978305,1772399431636,-1044.90343357,9.99e-05,2]
[406978306,1772399431667,-3298.87374977,9.99e-05,2]
[406978307,1772399431679,-324.01857318,9.99e-05,2]
[406978308,1772399431691,-314.57995572,9.99e-05,2]
[406978309,1772399431728,-17.62428776,9.99e-05,2]
[406978310,1772399431739,-1171.62304528,0.00010259,2]
[406978311,1772399431748,-300.0,0.00010799,2]
[406978312,1772399431758,-1200.0,0.00010799,2]
[406978313,1772399431768,-1031.9553532,0.000108,2]
[406978314,1772399431778,-452.541669,0.00010863,2]
[406978315,1772399431788,-300.0,0.00010891,2]
[406978316,1772399431799,-300.0,0.00010891,2]
[406978317,1772399431809,-1704.45506651,0.00010892,2]
[406978318,1772399431968,-204.77558147,0.00010945,2]
[406978319,1772399431980,-5000.0,0.00010945,2]
[406978320,1772399431990,-250.0,0.00010945,2]
[406978321,1772399432000,-5000.0,0.00010945,2]
[406978322,1772399432011,-26586.40892753,0.0001106,2]
[406978323,1772399432021,-150.0,0.00011069,2]
[406978324,1772399432030,-6649.22191308,0.0001107,2]
[406978325,1772399432043,-20837.05414374,0.0001107,2]
[406978326,1772399432054,-3581.63394318,0.0001107,2]
[406978327,1772399432064,-197.0,0.0001111,2]
[406978328,1772399432072,-150.0,0.00011152,2]
[406978329,1772399432082,-334.34,0.00011176,2]
[406978330,1772399432092,-2124.46,0.00011434,2]
[406978331,1772399432102,-2711.57,0.00011507,2]
[406978332,1772399432113,-468.6177,0.00011598,2]
[406978333,1772399432123,-200.0,0.000116,4]
[406978334,1772399432133,-2500.0,0.00011635,2]
[406978335,1772399432144,-183.99849235,0.00011645,2]
[406978336,1772399432155,-4169.78269182,0.00011697,2]
[406978337,1772399432165,-500.0,0.000117,4]
[406978338,1772399432176,-152.10740393,0.00011728,2]
[406978339,1772399432186,-200.0,0.00011728,2]
[406978340,1772399432195,-500.0,0.00011734,2]
[406978341,1772399432206,-645.20671388,0.00011734,2]
[406978342,1772399432216,-500.0,0.00011734,2]
[406978344,1772399432227,-193.13757123,0.00011734,2]
[406978346,1772399432238,-351.95673059,0.00011734,2]
[406978347,1772399432248,-500.0,0.00011734,2]
[406978349,1772399432259,-500.0,0.00011734,2]
[406978350,1772399432270,-500.0,0.00011734,2]
[406978351,1772399432280,-500.0,0.00011734,2]
[406978352,1772399432291,-232.2762251,0.00011734,2]
[406978353,1772399432303,-500.0,0.00011734,2]
[406978354,1772399432314,-500.0,0.00011734,2]
[406978355,1772399432324,-449.57555187,0.00011734,2]
[406978356,1772399432335,-500.0,0.00011734,2]
[406978357,1772399432345,-500.0,0.00011734,2]
[406978358,1772399432355,-500.0,0.00011734,2]
[406978359,1772399432366,-500.0,0.00011734,2]
[406978360,1772399432376,-500.0,0.00011734,2]
[406978361,1772399432386,-500.0,0.00011734,2]
[406978362,1772399432396,-500.0,0.00011734,2]
[406978363,1772399432407,-500.0,0.00011734,2]
[406978364,1772399432418,-500.0,0.00011734,2]
[406978365,1772399432429,-500.0,0.00011734,2]
[406978366,1772399432439,-500.0,0.00011734,2]
[406978367,1772399432450,-167.5550331,0.00011734,2]
[406978368,1772399432462,-500.0,0.00011734,2]
[406978369,1772399432473,-500.0,0.00011734,2]
[406978370,1772399432483,-500.0,0.00011734,2]
[406978371,1772399432494,-500.0,0.00011734,2]
[406978372,1772399432505,-500.0,0.00011734,2]
[406978373,1772399432516,-500.0,0.00011734,2]
[406978374,1772399432526,-500.0,0.00011734,2]
[406978375,1772399432537,-500.0,0.00011734,2]
[406978376,1772399432547,-500.0,0.00011734,2]
[406978377,1772399432557,-500.0,0.00011734,2]
[406978378,1772399432567,-500.0,0.00011734,2]
[406978379,1772399432578,-500.0,0.00011734,2]
[406978380,1772399432588,-500.0,0.00011734,2]
[406978381,1772399432599,-500.0,0.00011734,2]
[406978382,1772399432610,-500.0,0.00011734,2]
[406978383,1772399432619,-500.0,0.00011734,2]
[406978384,1772399432629,-500.0,0.00011734,2]
[406978385,1772399432639,-500.0,0.00011734,2]
[406978386,1772399432649,-500.0,0.00011734,2]
[406978387,1772399432659,-500.0,0.00011734,2]
[406978388,1772399432672,-450.0,0.00011734,2]
[406978389,1772399432683,-500.0,0.00011734,2]
[406978390,1772399432693,-500.0,0.00011734,2]
[406978391,1772399432703,-500.0,0.00011734,2]
[406978392,1772399432714,-500.0,0.00011734,2]
[406978393,1772399432724,-500.0,0.00011734,2]
[406978394,1772399432735,-500.0,0.00011734,2]
[406978395,1772399432745,-500.0,0.00011734,2]
[406978396,1772399432756,-313.15861721,0.00011734,2]
[406978397,1772399432766,-500.0,0.00011734,2]
[406978398,1772399432777,-500.0,0.00011734,2]
[406978399,1772399432787,-500.0,0.00011734,2]
[406978400,1772399432799,-500.0,0.00011734,2]
[406978401,1772399432809,-500.0,0.00011734,2]
[406978402,1772399432819,-500.0,0.00011734,2]
[406978403,1772399432830,-500.0,0.00011734,2]
[406978404,1772399432840,-500.0,0.00011734,2]
[406978405,1772399432850,-500.0,0.00011734,2]
[406978406,1772399432860,-500.0,0.00011734,2]
[406978407,1772399432870,-500.0,0.00011734,2]
[406978408,1772399432880,-500.0,0.00011734,2]
[406978409,1772399432891,-500.0,0.00011734,2]
[406978410,1772399432901,-500.0,0.00011734,2]
[406978411,1772399432911,-500.0,0.00011734,2]
[406978412,1772399432922,-500.0,0.00011734,2]
[406978413,1772399432932,-500.0,0.00011734,2]
[406978414,1772399432943,-243.77768652,0.00011734,2]
[406978415,1772399432954,-500.0,0.00011734,2]
[406978416,1772399432965,-500.0,0.00011734,2]
[406978417,1772399432979,-500.0,0.00011734,2]
[406978418,1772399432992,-500.0,0.00011734,2]
[406978419,1772399433003,-500.0,0.00011734,2]
[406978420,1772399433015,-500.0,0.00011734,2]
[406978421,1772399433025,-500.0,0.00011734,2]
[406978422,1772399433036,-500.0,0.00011734,2]
[406978423,1772399433048,-184.59218893,0.00011734,2]
[406978424,1772399433059,-500.0,0.00011734,2]
[406978425,1772399433071,-500.0,0.00011734,2]
[406978426,1772399433083,-648.93368304,0.00011734,2]
[406978427,1772399433094,-648.93368304,0.00011734,2]
[406978428,1772399433104,-648.93368304,0.00011734,2]
[406978429,1772399433116,-648.93368304,0.00011734,2]
[406978430,1772399433127,-648.93368304,0.00011734,2]
[406978431,1772399433140,-648.93368304,0.00011734,2]
[406978432,1772399433151,-648.93368304,0.00011734,2]
[406978433,1772399433161,-648.93368304,0.00011734,2]
[406978434,1772399433173,-648.93368304,0.00011734,2]
[406978435,1772399433186,-648.93368304,0.00011734,2]
[406978436,1772399433196,-648.93368304,0.00011734,2]
[406978437,1772399433207,-648.93368304,0.00011734,2]
[406978438,1772399433217,-500.0,0.00011734,2]
[406978439,1772399433228,-500.0,0.00011734,2]
[406978440,1772399433241,-297.86736608,0.00011734,2]
[406978441,1772399433251,-648.93368304,0.00011734,2]
[406978442,1772399433262,-648.93368304,0.00011734,2]
[406978443,1772399433272,-648.93368304,0.00011734,2]
[406978444,1772399433282,-648.93368304,0.00011734,2]
[406978445,1772399433293,-334.34,0.00011797,2]
[406978446,1772399433304,-192.0,0.00011798,2]
[406978447,1772399433314,-800.0,0.000118,4]
[406978448,1772399433324,-1000.0,0.00011845,2]
[406978449,1772399433335,-1680.0,0.00011879,2]
[406978450,1772399433347,-1000.0,0.000119,4]
[406978451,1772399433357,-255.0,0.00012121,2]
[406978452,1772399433367,-200.0,0.00012276,2]
[406978453,1772399433377,-4169.78269178,0.00012386,2]
[406978454,1772399433388,-334.34,0.00012418,2]
[406978455,1772399433398,-200.0,0.00012824,2]
[406978456,1772399433409,-578.20924308,0.0001296,2]
[406978457,1772399433420,-174.61919141,0.0001296,2]
[406978458,1772399433431,-644.79446246,0.0001296,2]
[406978459,1772399433442,-500.0,0.0001296,2]
[406978460,1772399433454,-500.0,0.0001296,2]
[406978461,1772399433466,-500.0,0.0001296,2]
[406978462,1772399433477,-442.19135025,0.0001296,2]
[406978463,1772399433488,-668.65185757,0.00013015,2]
[406978464,1772399433501,-334.34,0.00013039,2]
[406978465,1772399433512,-2351.0,0.00013067,2]
[406978466,1772399433524,-693.3919763,0.0001307,2]
[406978467,1772399433535,-4169.78269178,0.00013075,2]
[406978468,1772399433546,-719.04747942,0.00013125,2]
[406978469,1772399433559,-745.65223616,0.0001318,2]
[406978470,1772399433570,-773.2413689,0.00013235,2]
[406978471,1772399433582,-156.569443,0.00013237,2]
[406978472,1772399433593,-433.0,0.00013272,2]
[406978473,1772399433603,-801.85129955,0.0001329,2]
[406978474,1772399433614,-831.51979763,0.00013345,2]
[406978475,1772399433625,-200.0,0.00013372,2]
[406978476,1772399433637,-862.28603014,0.000134,2]
[406978477,1772399433648,-894.19061326,0.00013455,2]
[406978478,1772399433659,-8727.0,0.00013487,2]
[406978479,1772399433670,-181.08010149,0.00013508,2]
[406978480,1772399433680,-927.27566595,0.0001351,2]
[406978481,1772399433692,-961.58486559,0.00013565,2]
[406978482,1772399433703,-997.16350561,0.0001362,2]
[406978483,1772399433713,-334.34,0.0001366,2]
[406978484,1772399433723,-492.72598611,0.00013699,2]
[406978485,1772399433733,-4169.78269178,0.00013765,2]
[406978486,1772399433744,-200.0,0.0001392,2]
[406978487,1772399433755,-187.78006525,0.00014056,2]
[406978488,1772399433766,-516.0,0.0001411,2]
[406978489,1772399433776,-159.35,0.00014223,2]
[406978490,1772399433787,-334.34,0.00014281,2]
[406978491,1772399433797,-3292.0,0.00014373,2]
[406978492,1772399433809,-4169.78269178,0.00014454,2]
[406978493,1772399433819,-200.0,0.00014468,2]
[406978494,1772399433829,-736.0,0.00014534,2]
[406978495,1772399433840,-194.72792766,0.00014604,2]
[406978496,1772399433850,-1211.0,0.00014805,2]
[406978497,1772399433861,-921.0,0.00014805,2]
[406978498,1772399433871,-5985.0,0.00014805,2]
[406978499,1772399433881,-413.0,0.00014805,2]
[406978500,1772399433891,-334.34,0.00014902,2]
[406978501,1772399433901,-250.0,0.00015,2]
[406978502,1772399433911,-200.0,0.00015016,2]
[406978503,1772399433922,-1600.0,0.00015132,2]
[406978504,1772399433935,-200.0,0.00015137,2]
[406978505,1772399433945,-4169.78269178,0.00015143,2]
[406978506,1772399433955,-201.93286099,0.00015152,2]
[406978507,1772399433967,-174.09452548,0.00015279,2]
[406978508,1772399433977,-150.99,0.0001531,2]
[406978509,1772399433988,-9999.99,0.0001531,2]
[406978510,1772399433998,-9999.99,0.0001531,2]
[406978511,1772399434010,-502.4,0.00015314,2]
[406978512,1772399434022,-150.0,0.00015412,2]
[406978513,1772399434034,-150.0,0.00015412,2]
[406978514,1772399434045,-150.0,0.00015412,2]
[406978515,1772399434055,-150.0,0.00015412,2]
[406978516,1772399434065,-150.0,0.00015412,2]
[406978517,1772399434075,-150.0,0.00015412,2]
[406978518,1772399434085,-150.0,0.00015412,2]
[406978519,1772399434094,-150.0,0.00015412,2]
[406978520,1772399434104,-619.0,0.00015412,2]
[406978521,1772399434114,-3500.0,0.00015412,2]
[406978522,1772399434124,-1340.0,0.00015412,2]
[406978523,1772399434134,-1041.0,0.00015412,2]
[406978524,1772399434144,-1278.0,0.00015412,2]
[406978525,1772399434154,-334.34,0.00015523,2]
[406978526,1772399434164,-202.72622012,0.00015564,2]
[406978527,1772399434174,-599.60298507,0.00015699,2]
[406978528,1772399434184,-209.40437684,0.000157,2]
[406978529,1772399434194,-3103.0,0.00015811,2]
[406978530,1772399434205,-4169.78269178,0.00015832,2]
[406978531,1772399434215,-1058.0,0.00015918,2]
[406978532,1772399434226,-2500.0,0.00016082,2]
[406978533,1772399434236,-700.0,0.00016082,2]
[406978534,1772399434246,-334.34,0.00016143,2]
[406978535,1772399434256,-217.15233878,0.00016248,2]
[406978536,1772399434266,-150.0,0.00016307,2]
[406978537,1772399434277,-500.0,0.00016356,2]
[406978538,1772399434287,-2000.0,0.00016438,2]
[406978539,1772399434296,-4169.78269178,0.00016522,2]
[406978540,1772399434306,-187.883332,0.00016547,7]
[406978541,1772399434316,-1582.26608,0.0001658,7]
[406978542,1772399434327,-6174.659145,0.0001658,7]
[406978543,1772399434337,-334.34,0.00016764,2]
[406978544,1772399434346,-225.18697532,0.00016796,2]
[406978545,1772399434461,-500.0,0.00016973,2]
[406978546,1772399434472,-500.0,0.00016973,2]
[406978547,1772399434482,-500.0,0.00016973,2]
[406978548,1772399434492,-500.0,0.00016973,2]
[406978549,1772399434502,-500.0,0.00016973,2]
[406978550,1772399434512,-500.0,0.00016973,2]
[406978551,1772399434523,-300.0,0.00017,2]
[406978552,1772399434533,-1600.0,0.00017023,2]
[406978553,1772399434543,-1373.0,0.00017081,2]
[406978554,1772399434553,-1276.411,0.000171,2]
[406978555,1772399434563,-170.948,0.000171,2]
[406978556,1772399434572,-233.51889341,0.00017344,2]
[406978557,1772399434582,-1000.0,0.00017372,2]
[406978558,1772399434592,-233.0,0.00017411,2]
[406978559,1772399434603,-700.0,0.00017452,7]
[406978560,1772399434612,-2500.0,0.00017452,7]
[406978561,1772399434622,-1300.0,0.000175,6]
[406978562,1772399434632,-1000.0,0.00017521,2]
[406978563,1772399434641,-290.0,0.00017581,2]
[406978564,1772399434651,-200.0,0.000176,6]
[406978565,1772399434661,-1421.76134738,0.0001764,2]
[406978566,1772399434671,-1000.0,0.00017645,2]
[406978567,1772399434680,-150.0,0.00017698,2]
[406978568,1772399434690,-531.0,0.00017698,2]
[406978569,1772399434700,-150.0,0.00017698,2]
[406978570,1772399434709,-150.0,0.00017698,2]
[406978571,1772399434720,-150.0,0.00017698,2]
[406978572,1772399434729,-150.0,0.00017698,2]
[406978573,1772399434739,-158.97400468,0.00017698,2]
[406978574,1772399434749,-150.0,0.00017698,2]
[406978575,1772399434759,-150.0,0.00017698,2]
[406978576,1772399434769,-500.0,0.00017698,2]
[406978577,1772399434779,-150.0,0.00017698,2]
[406978578,1772399434789,-500.0,0.00017698,2]
[406978579,1772399434799,-500.0,0.00017698,2]
[406978580,1772399434809,-150.0,0.00017698,2]
[406978581,1772399434818,-200.0,0.000177,6]
[406978582,1772399434828,-500.0,0.00017726,7]
[406978583,1772399434838,-290.0,0.00017729,2]
[406978584,1772399434847,-531.0,0.00017753,2]
[406978585,1772399434858,-205.97279745,0.00017753,2]
[406978586,1772399434867,-150.0,0.00017753,2]
[406978587,1772399434877,-150.0,0.00017753,2]
[406978588,1772399434888,-150.0,0.00017753,2]
[406978589,1772399434898,-500.0,0.00017753,2]
[406978590,1772399434907,-500.0,0.00017753,2]
[406978591,1772399434917,-500.0,0.00017753,2]
[406978592,1772399434927,-200.0,0.000178,6]
[406978593,1772399434936,-1211.0,0.00017805,2]
[406978594,1772399434945,-921.0,0.00017805,2]
[406978595,1772399434955,-5985.0,0.00017805,2]
[406978596,1772399434965,-413.0,0.00017805,2]
[406978597,1772399434977,-531.0,0.00017808,2]
[406978598,1772399434986,-200.0,0.00017808,2]
[406978599,1772399434995,-150.0,0.00017808,2]
[406978600,1772399435004,-500.0,0.00017808,2]
[406978601,1772399435016,-500.0,0.00017808,2]
[406978602,1772399435026,-500.0,0.00017808,2]
[406978603,1772399435035,-151.0,0.00017808,2]
[406978604,1772399435046,-500.0,0.00017808,2]
[406978605,1772399435056,-500.0,0.00017808,2]
[406978606,1772399435066,-500.0,0.00017808,2]
[406978607,1772399435075,-500.0,0.00017808,2]
[406978608,1772399435085,-500.0,0.00017808,2]
[406978609,1772399435094,-500.0,0.00017808,2]
[406978610,1772399435104,-500.0,0.00017808,2]
[406978611,1772399435114,-500.0,0.00017808,2]
[406978612,1772399435123,-500.0,0.00017808,2]
[406978613,1772399435133,-500.0,0.00017808,2]
[406978614,1772399435143,-500.0,0.00017808,2]
[406978615,1772399435152,-526.24240129,0.00017808,2]
[406978616,1772399435162,-500.0,0.00017808,2]
[406978617,1772399435172,-500.0,0.00017808,2]
[406978618,1772399435182,-500.0,0.00017808,2]
[406978619,1772399435191,-500.0,0.00017808,2]
[406978620,1772399435201,-500.0,0.00017808,2]
[406978621,1772399435210,-500.0,0.00017808,2]
[406978622,1772399435221,-500.0,0.00017808,2]
[406978623,1772399435231,-500.0,0.00017808,2]
[406978624,1772399435241,-500.0,0.00017808,2]
[406978625,1772399435251,-500.0,0.00017808,2]
[406978626,1772399435260,-500.0,0.00017808,2]
[406978627,1772399435270,-500.0,0.00017808,2]
[406978628,1772399435280,-500.0,0.00017808,2]
[406978629,1772399435290,-500.0,0.00017808,2]
[406978630,1772399435300,-500.0,0.00017808,2]
[406978631,1772399435309,-500.0,0.00017808,2]
[406978632,1772399435318,-250.0,0.00017808,2]
[406978633,1772399435328,-500.0,0.00017808,2]
[406978634,1772399435337,-800.0,0.00017808,2]
[406978635,1772399435347,-531.0,0.00017862,2]
[406978636,1772399435356,-500.0,0.00017863,2]
[406978637,1772399435366,-150.0,0.00017873,2]
[406978638,1772399435375,-242.15909246,0.00017892,2]
[406978639,1772399435385,-10000.0,0.000179,2]
[406978640,1772399435395,-200.0,0.000179,6]
[406978641,1772399435405,-398.90714607,0.000179,3]
[406978642,1772399435415,-531.0,0.00017917,2]
[406978643,1772399435426,-500.0,0.00017918,2]
[406978644,1772399435435,-1000.0,0.00017919,2]
[406978645,1772399435445,-531.0,0.00017972,2]
[406978646,1772399435455,-500.0,0.00017972,2]
[406978647,1772399435465,-500.0,0.00017973,2]
[406978648,1772399435475,-500.0,0.00017973,2]
[406978649,1772399435485,-333.94416864,0.00017973,2]
[406978650,1772399435495,-500.0,0.00017973,2]
[406978651,1772399435505,-500.0,0.00017973,2]
[406978652,1772399435515,-500.0,0.00017973,2]
[406978653,1772399435524,-5800.0,0.00017992,2]
[406978654,1772399435534,-287.24701665,0.00017995,2]
[406978655,1772399435544,-300.0,0.00017995,2]
[406978656,1772399435553,-300.0,0.00017995,2]
[406978657,1772399435563,-503.37240791,0.00017995,2]
[406978658,1772399435573,-6841.46365011,0.00017996,4]
[406978659,1772399435583,-40563.63722387,0.00017996,2]
[406978660,1772399435625,-7400.21217841,0.00017996,2]
[406978661,1772399435637,-3935.87063297,0.00017996,2]
[406978662,1772399435648,-9501.16846777,0.00017996,2]
[406978663,1772399435660,-278.617552,0.00017996,2]
[406978664,1772399435673,-320.65660765,0.00017996,2]
[406978665,1772399435685,-625.6194234,0.00017996,2]
[406978666,1772399435701,-1885.80247148,0.00017996,2]
[406978667,1772399435712,-9805.73974299,0.00017996,2]
[406978668,1772399435728,-924.05253866,0.00017996,2]
[406978669,1772399435740,-621.13759098,0.00017996,2]
[406978670,1772399435751,-663.95329857,0.00017996,2]
[406978671,1772399435762,-2222.4674481,0.00017996,2]
[406978672,1772399435774,-861.64940807,0.00017996,2]
[406978673,1772399435788,-1147.18000044,0.00017996,2]
[406978678,1772399438812,-4169.78269178,0.00017211,2]
[406978679,1772399438822,-4169.78269178,0.000179,2]
[406978680,1772399438832,-11682.45862444,0.00017996,2]
[406978681,1772399438843,-1316.0,0.00017996,2]
[406978682,1772399438854,-300.0,0.00017999,2]
[406978683,1772399438864,-150.0,0.00017999,2]
[406978684,1772399438874,-293.05069343,0.00017999,2]
[406978685,1772399438884,-619513.28525349,0.00018,2]
[406978686,1772399438893,-258164.89256076,0.00018,2]
[406978687,1772399438910,-4571.65357195,0.00018,2]
[406978688,1772399438942,-1323.0,0.00014805,2]
[406978689,1772399438952,-2599.2,0.00018,2]
[406978696,1772399439102,-4509.8360784,0.00018,2]
[406978705,1772399439919,-1008.68162542,0.00017805,2]
[406978706,1772399440239,-314.31837458,0.00017805,2]
[406978707,1772399440249,-749.38162542,0.00018,2]
[406978708,1772399440275,-489.84305652,0.00018,2]
[406978722,1772399445424,-278.63111123,0.00010159,2]
[406978723,1772399445434,-42.92968422,0.00011635,2]
[406978724,1772399445445,-640.48191107,0.00011635,2]
[406978725,1772399445481,-1816.58840471,0.00011635,2]
[406978726,1772399445491,-2488.408,0.00014805,2]
[406978727,1772399445500,-75.82281404,0.00017805,2]
[406978728,1772399445538,-835.89333367,0.00017805,2]
[406978729,1772399445648,-1545.28385229,0.00017805,2]
[406978730,1772399445658,-2904.27937947,0.00017999,2]
[406978731,1772399445667,-91330.43676874,0.00018,2]
[406978750,1772399530746,424.77261901,8.395e-05,2]
[406978751,1772399530773,3866.58738099,8.395e-05,2]
[406978752,1772399530978,4291.36,8.837e-05,2]
[406978753,1772399531202,4291.36,9.279e-05,2]
[406978754,1772400058826,-4291.36,9.72e-05,2]
[406978755,1772400058861,-217.29,9.96e-05,2]
[406978756,1772400058907,-869.06270008,9.96e-05,2]
[406978757,1772400059035,-113.64729992,9.96e-05,2]
[406978758,1772400059065,-1053.95896503,9.961e-05,2]
[406978759,1772400059102,-7664.7974701,9.961e-05,2]
[406978760,1772400061671,-300.0,9.96e-05,2]
[406978761,1772400061700,-185.75407416,0.00010061,2]
[406978762,1772400061729,-4291.36,0.00010162,2]
[406978763,1772400061797,-445.78185168,0.00010604,2]
[406978764,1772400064730,-3845.57814832,0.00010604,2]
[406978765,1772400064759,-300.0,0.00010692,2]
[406978766,1772400064805,-1708.85370336,0.00010693,2]
[406978767,1772400067971,-1253.24196087,0.00010693,2]
[406978768,1772400068181,-193.0,0.00010693,2]
[406978769,1772400446465,500.0,9.003e-05,2]
[406978770,1772400446931,500.0,9.003e-05,2]
[406978771,1772400447427,500.0,9.003e-05,2]
[406978772,1772400516834,-524.01,0.0001,2]